fUSD/lending_fUSD_20250612
["ID","MTS","AMOUNT","RATE_DAILY","PERIOD"]
[365469162,1749689443774,-801.45,0.00019178,2]
[365469163,1749689443783,-490.0,0.00019178,2]
[365469164,1749689443792,-1232.4,0.00019178,2]
[365469165,1749689443801,-151.0,0.00019178,2]
[365469166,1749689443810,-738.16,0.00019178,2]
[365469167,1749689443819,-491.22299461,0.00019178,2]
[365469168,1749689443828,-151.0,0.00019178,2]
[365469169,1749689443837,-151.0,0.00019178,2]
[365469170,1749689443846,-160.38062538,0.00019178,2]
[365469171,1749689443855,-490.0,0.00019178,2]
[365469172,1749689443864,-872.12,0.00019178,2]
[365469173,1749689443873,-151.0,0.00019178,2]
[365469174,1749689443882,-151.0,0.00019178,2]
[365469175,1749689443892,-490.0,0.00019178,2]
[365469176,1749689443902,-1087.73,0.00019178,2]
[365469177,1749689443911,-490.0,0.00019178,2]
[365469178,1749689443921,-1207.63,0.00019178,2]
[365469179,1749689443930,-450.0,0.00019178,2]
[365469180,1749689443939,-490.0,0.00019178,2]
[365469181,1749689443948,-490.0,0.00019178,2]
[365469182,1749689443958,-1407.554571,0.00019178,2]
[365469183,1749689443967,-1407.554571,0.00019178,2]
[365469184,1749689443977,-490.0,0.00019178,2]
[365469185,1749689443986,-490.0,0.00019178,2]
[365469186,1749689443995,-1407.554571,0.00019178,2]
[365469187,1749689444004,-1407.554571,0.00019178,2]
[365469188,1749689444014,-490.0,0.00019178,2]
[365469189,1749689444023,-1194.84,0.00019178,2]
[365469190,1749689444033,-480.0,0.00019178,2]
[365469191,1749689444042,-490.0,0.00019178,2]
[365469192,1749689444052,-250.0,0.00019178,2]
[365469193,1749689444061,-1000.0,0.00019178,2]
[365469194,1749689444071,-490.0,0.00019178,2]
[365469195,1749689444316,-460.0,0.00019178,2]
[365469196,1749689444325,-490.0,0.00019178,2]
[365469197,1749689444334,-490.0,0.00019178,2]
[365469198,1749689444343,-490.0,0.00019178,2]
[365469199,1749689444352,-490.0,0.00019178,2]
[365469200,1749689444361,-439.02945087,0.00019178,2]
[365469201,1749689444371,-639.46,0.00019178,2]
[365469202,1749689444380,-480.0,0.00019178,2]
[365469203,1749689444390,-490.0,0.00019178,2]
[365469204,1749689444399,-474.38374052,0.00019178,2]
[365469205,1749689444408,-1035.86,0.00019178,2]
[365469206,1749689444417,-490.0,0.00019178,2]
[365469207,1749689444427,-490.0,0.00019178,2]
[365469208,1749689444436,-206.366026,0.00019178,2]
[365469209,1749689444445,-206.366026,0.00019178,2]
[365469210,1749689444454,-725.62,0.00019178,2]
[365469211,1749689444464,-603.93,0.00019178,2]
[365469212,1749689444473,-353.6776107,0.00019178,2]
[365469213,1749689444483,-206.366026,0.00019178,2]
[365469214,1749689444493,-206.366026,0.00019178,2]
[365469215,1749689444504,-265.49,0.00019178,2]
[365469216,1749689444514,-540.37,0.00019178,2]
[365469217,1749689444524,-734.88,0.00019178,2]
[365469218,1749689444534,-1181.0,0.00019178,2]
[365469219,1749689444543,-460.0,0.00019178,2]
[365469220,1749689444553,-490.0,0.00019178,2]
[365469221,1749689444562,-490.0,0.00019178,2]
[365469222,1749689444571,-10038.63,0.00019178,2]
[365469223,1749689444581,-1082.86,0.00019178,2]
[365469224,1749689444592,-831.01,0.00019178,2]
[365469225,1749689444601,-460.0,0.00019178,2]
[365469226,1749689444611,-490.0,0.00019178,2]
[365469227,1749689444623,-490.0,0.00019178,2]
[365469228,1749689444632,-151.0,0.00019178,2]
[365469229,1749689444642,-490.0,0.00019178,2]
[365469230,1749689444652,-151.0,0.00019178,2]
[365469231,1749689444662,-478.50815936,0.00019178,2]
[365469232,1749689444671,-490.0,0.00019178,2]
[365469233,1749689444681,-460.0,0.00019178,2]
[365469234,1749689444690,-2527.44,0.00019178,2]
[365469235,1749689444700,-392.59686136,0.00019178,2]
[365469236,1749689444709,-2403.59,0.00019178,2]
[365469237,1749689444719,-151.0,0.00019178,2]
[365469238,1749689444728,-151.0,0.00019178,2]
[365469239,1749689444738,-759.55,0.00019178,2]
[365469240,1749689444748,-460.0,0.00019178,2]
[365469241,1749689444757,-490.0,0.00019178,2]
[365469242,1749689444766,-490.0,0.00019178,2]
[365469243,1749689444775,-1909.36,0.00019178,2]
[365469244,1749689444785,-460.0,0.00019178,2]
[365469245,1749689444794,-490.0,0.00019178,2]
[365469246,1749689444803,-460.0,0.00019178,2]
[365469247,1749689444812,-936.8,0.00019178,2]
[365469248,1749689444821,-1631.32,0.00019178,2]
[365469249,1749689444831,-490.0,0.00019178,2]
[365469250,1749689444840,-490.0,0.00019178,2]
[365469251,1749689444849,-1327.73,0.00019178,2]
[365469252,1749689444858,-1379.64,0.00019178,2]
[365469253,1749689444867,-531.0772691,0.00019178,2]
[365469254,1749689444876,-1143.66,0.00019178,2]
[365469255,1749689444886,-490.0,0.00019178,2]
[365469256,1749689444896,-490.0,0.00019178,2]
[365469257,1749689444906,-821.07,0.00019178,2]
[365469258,1749689444915,-1617.29,0.00019178,2]
[365469259,1749689444924,-1109.02,0.00019178,2]
[365469260,1749689444933,-500.0,0.00019178,2]
[365469261,1749689444942,-470.0,0.00019178,2]
[365469262,1749689444952,-1261.24,0.00019178,2]
[365469263,1749689444962,-500.0,0.00019178,2]
[365469264,1749689444972,-2272.84,0.00019178,2]
[365469265,1749689444981,-460.0,0.00019178,2]
[365469266,1749689444990,-490.0,0.00019178,2]
[365469267,1749689444999,-1488.77,0.00019178,2]
[365469268,1749689445008,-819.77,0.00019178,2]
[365469269,1749689445017,-906.03,0.00019178,2]
[365469270,1749689445026,-500.0,0.00019178,2]
[365469271,1749689445036,-1129.64,0.00019178,2]
[365469272,1749689445046,-253.20959988,0.00019178,2]
[365469273,1749689445055,-1075.98,0.00019178,2]
[365469274,1749689445065,-500.0,0.00019178,2]
[365469275,1749689445074,-1461.14,0.00019178,2]
[365469276,1749689445083,-490.0,0.00019178,2]
[365469277,1749689445092,-204.34173649,0.00019178,2]
[365469278,1749689445101,-480.0,0.00019178,2]
[365469279,1749689445110,-637.24,0.00019178,2]
[365469280,1749689445119,-500.0,0.00019178,2]
[365469281,1749689445128,-6519.16,0.00019178,2]
[365469282,1749689445137,-490.0,0.00019178,2]
[365469283,1749689445146,-2132.31,0.00019178,2]
[365469284,1749689445156,-1740.61,0.00019178,2]
[365469285,1749689445165,-1126.51,0.00019178,2]
[365469286,1749689445174,-1492.32,0.00019178,2]
[365469287,1749689445184,-1081.1,0.00019178,2]
[365469288,1749689445193,-3858.8,0.00019178,2]
[365469289,1749689445202,-150.0,0.00019178,2]
[365469290,1749689445211,-3749.52,0.00019178,2]
[365469291,1749689445220,-3735.67,0.00019178,2]
[365469292,1749689445229,-490.0,0.00019178,2]
[365469293,1749689445237,-786.29,0.00019178,2]
[365469294,1749689445246,-490.0,0.00019178,2]
[365469295,1749689445256,-265.757135,0.00019178,2]
[365469296,1749689445266,-265.757135,0.00019178,2]
[365469297,1749689445275,-6103.54,0.00019178,2]
[365469299,1749689445284,-150.0,0.00019178,2]
[365469301,1749689445293,-490.0,0.00019178,2]
[365469303,1749689445302,-490.0,0.00019178,2]
[365469304,1749689445312,-490.0,0.00019178,2]
[365469305,1749689445321,-490.0,0.00019178,2]
[365469306,1749689445330,-1000.0,0.00019178,2]
[365469307,1749689445339,-2656.6,0.00019178,2]
[365469308,1749689445348,-265.757135,0.00019178,2]
[365469309,1749689445357,-265.757135,0.00019178,2]
[365469310,1749689445367,-1079.37,0.00019178,2]
[365469311,1749689445376,-1244.23,0.00019178,2]
[365469312,1749689445385,-470.0,0.00019178,2]
[365469313,1749689445395,-490.0,0.00019178,2]
[365469314,1749689445405,-1036.92,0.00019178,2]
[365469315,1749689445414,-1064.76,0.00019178,2]
[365469316,1749689445423,-490.0,0.00019178,2]
[365469317,1749689445432,-500.2,0.00019178,2]
[365469318,1749689445441,-490.0,0.00019178,2]
[365469319,1749689445454,-494.0,0.00019178,2]
[365469320,1749689445467,-1890.68,0.00019178,2]
[365469321,1749689445477,-2657.85,0.00019178,2]
[365469322,1749689445486,-743.58,0.00019178,2]
[365469323,1749689445496,-2968.3,0.00019178,2]
[365469324,1749689445505,-480.0,0.00019178,2]
[365469325,1749689445515,-671.2,0.00019178,2]
[365469326,1749689445524,-1161.47,0.00019178,2]
[365469327,1749689445534,-238.781851,0.00019178,2]
[365469328,1749689445543,-27.64820316,0.00019178,2]
[365469329,1749689445577,-211.13364784,0.00019178,2]
[365469330,1749689445586,-470.0,0.00019178,2]
[365469331,1749689445596,-190.85116016,0.00019178,2]
[365469332,1749689445609,-299.14883984,0.00019178,2]
[365469333,1749689445619,-31.44859628,0.00019178,2]
[365469334,1749689445630,-458.55140372,0.00019178,2]
[365469335,1749689445641,-2663.31663218,0.00019178,2]
[365469336,1749689445652,-394.20200095,0.00019178,2]
[365469337,1749689445664,-518.82136687,0.00019178,2]
[365469338,1749689445673,-1514.44,0.00019178,2]
[365469339,1749689445684,-238.781851,0.00019178,2]
[365469340,1749689445694,-238.781851,0.00019178,2]
[365469341,1749689445703,-490.0,0.00019178,2]
[365469342,1749689445713,-2485.3,0.00019178,2]
[365469343,1749689445722,-2893.45,0.00019178,2]
[365469344,1749689445733,-646.03,0.00019178,2]
[365469345,1749689445745,-1246.92,0.00019178,2]
[365469346,1749689445754,-150.0,0.00019178,2]
[365469347,1749689445764,-1002.29,0.00019178,2]
[365469348,1749689445773,-490.0,0.00019178,2]
[365469349,1749689445782,-2149.87,0.00019178,2]
[365469350,1749689445791,-490.0,0.00019178,2]
[365469351,1749689445801,-697.53,0.00019178,2]
[365469352,1749689445810,-160.68065248,0.00019178,2]
[365469353,1749689445819,-150.0,0.00019178,2]
[365469354,1749689445828,-1220.35,0.00019178,2]
[365469355,1749689445837,-444.0,0.00019178,2]
[365469356,1749689445846,-685.77,0.00019178,2]
[365469357,1749689445855,-470.0,0.00019178,2]
[365469358,1749689445864,-490.0,0.00019178,2]
[365469359,1749689445873,-624.82,0.00019178,2]
[365469360,1749689445882,-850.06,0.00019178,2]
[365469361,1749689445891,-13161.95,0.00019178,2]
[365469362,1749689445901,-1417.23,0.00019178,2]
[365469363,1749689445911,-490.0,0.00019178,2]
[365469364,1749689445922,-2251.0,0.00019178,2]
[365469365,1749689445931,-3491.21364,0.00019178,2]
[365469366,1749689445941,-490.0,0.00019178,2]
[365469367,1749689445951,-3491.21364,0.00019178,2]
[365469368,1749689445962,-861.61,0.00019178,2]
[365469369,1749689445972,-490.0,0.00019178,2]
[365469370,1749689445981,-490.0,0.00019178,2]
[365469371,1749689445991,-490.0,0.00019178,2]
[365469372,1749689446001,-447.70254536,0.00019178,2]
[365469373,1749689446011,-1004.29,0.00019178,2]
[365469374,1749689446021,-200.0,0.00019178,2]
[365469375,1749689446030,-5486.65,0.00019178,2]
[365469376,1749689446039,-3491.21364,0.00019178,2]
[365469377,1749689446049,-3491.21364,0.00019178,2]
[365469378,1749689446059,-150.0,0.00019178,2]
[365469379,1749689446069,-479.068402,0.00019178,2]
[365469380,1749689446079,-479.068402,0.00019178,2]
[365469381,1749689446089,-411.829628,0.00019178,2]
[365469382,1749689446098,-411.829628,0.00019178,2]
[365469383,1749689446108,-490.0,0.00019178,2]
[365469384,1749689446118,-490.0,0.00019178,2]
[365469385,1749689446128,-500.0,0.00019178,2]
[365469386,1749689446138,-397.30792608,0.00019178,2]
[365469387,1749689446149,-280.27049128,0.00019178,2]
[365469388,1749689446159,-500.0,0.00019178,2]
[365469389,1749689446169,-500.0,0.00019178,2]
[365469390,1749689446179,-500.0,0.00019178,2]
[365469391,1749689446189,-500.0,0.00019178,2]
[365469392,1749689446198,-250.13324211,0.00019178,2]
[365469393,1749689446208,-738.47,0.00019178,2]
[365469394,1749689446218,-2117.86,0.00019178,2]
[365469395,1749689446228,-1129.69,0.00019178,2]
[365469396,1749689446238,-479.068402,0.00019178,2]
[365469397,1749689446247,-490.0,0.00019178,2]
[365469398,1749689446257,-479.068402,0.00019178,2]
[365469399,1749689446266,-480.0,0.00019178,2]
[365469400,1749689446276,-490.0,0.00019178,2]
[365469401,1749689446285,-613.24774087,0.00019178,2]
[365469402,1749689446295,-270.4575665,0.00019178,2]
[365469403,1749689446304,-411.829628,0.00019178,2]
[365469404,1749689446313,-1597.71,0.00019178,2]
[365469405,1749689446323,-411.829628,0.00019178,2]
[365469406,1749689446332,-151.0,0.00019178,2]
[365469407,1749689446341,-151.0,0.00019178,2]
[365469408,1749689446350,-514.69,0.00019178,2]
[365469409,1749689446359,-728.47,0.00019178,2]
[365469410,1749689446370,-514.69,0.00019178,2]
[365469411,1749689446379,-514.69,0.00019178,2]
[365469412,1749689446388,-480.0,0.00019178,2]
[365469413,1749689446399,-764.07,0.00019178,2]
[365469414,1749689446409,-490.0,0.00019178,2]
[365469415,1749689446419,-1483.08,0.00019178,2]
[365469416,1749689446429,-1070.04,0.00019178,2]
[365469417,1749689446439,-151.0,0.00019178,2]
[365469418,1749689446448,-490.0,0.00019178,2]
[365469419,1749689446457,-259.414797,0.00019178,2]
[365469420,1749689446466,-490.0,0.00019178,2]
[365469421,1749689446476,-490.0,0.00019178,2]
[365469422,1749689446485,-935.4,0.00019178,2]
[365469423,1749689446494,-588.75,0.00019178,2]
[365469424,1749689446503,-680.89,0.00019178,2]
[365469425,1749689446513,-490.0,0.00019178,2]
[365469426,1749689446522,-490.0,0.00019178,2]
[365469427,1749689446531,-490.0,0.00019178,2]
[365469428,1749689446542,-1474.77,0.00019178,2]
[365469429,1749689446552,-1629.46,0.00019178,2]
[365469430,1749689446563,-528.34,0.00019178,2]
[365469431,1749689446576,-754.2,0.00019178,2]
[365469432,1749689446585,-490.0,0.00019178,2]
[365469433,1749689446595,-1307.15,0.00019178,2]
[365469434,1749689446605,-490.0,0.00019178,2]
[365469435,1749689446618,-490.0,0.00019178,2]
[365469436,1749689446628,-3824.0,0.00019178,2]
[365469437,1749689446637,-1256.89,0.00019178,2]
[365469438,1749689446647,-1125.97,0.00019178,2]
[365469439,1749689446658,-923.39,0.00019178,2]
[365469440,1749689446667,-490.0,0.00019178,2]
[365469441,1749689446676,-2270.2,0.00019178,2]
[365469442,1749689446686,-1828.95,0.00019178,2]
[365469443,1749689446696,-623.5,0.00019178,2]
[365469444,1749689446705,-407.9318492,0.00019178,2]
[365469445,1749689446714,-490.0,0.00019178,2]
[365469446,1749689446724,-5780.91,0.00019178,2]
[365469447,1749689446732,-490.0,0.00019178,2]
[365469448,1749689446742,-490.0,0.00019178,2]
[365469449,1749689446753,-1085.0,0.00019178,2]
[365469450,1749689446762,-1021.62,0.00019178,2]
[365469451,1749689446771,-490.0,0.00019178,2]
[365469452,1749689446781,-532.47,0.00019178,2]
[365469453,1749689446790,-619.51,0.00019178,2]
[365469454,1749689446800,-439.98438175,0.00019178,2]
[365469455,1749689446809,-490.0,0.00019178,2]
[365469456,1749689446819,-3191.15,0.00019178,2]
[365469457,1749689446828,-490.0,0.00019178,2]
[365469458,1749689446837,-4343.6,0.00019178,2]
[365469459,1749689446846,-162.024563,0.00019178,2]
[365469460,1749689446856,-490.0,0.00019178,2]
[365469461,1749689446865,-645.09,0.00019178,2]
[365469462,1749689446874,-490.0,0.00019178,2]
[365469463,1749689446884,-490.0,0.00019178,2]
[365469464,1749689446893,-490.0,0.00019178,2]
[365469465,1749689446902,-490.0,0.00019178,2]
[365469466,1749689446911,-778.43,0.00019178,2]
[365469467,1749689446921,-573.19,0.00019178,2]
[365469468,1749689446931,-4344.65,0.00019178,2]
[365469469,1749689446940,-555.78,0.00019178,2]
[365469470,1749689446950,-490.0,0.00019178,2]
[365469471,1749689446960,-490.0,0.00019178,2]
[365469472,1749689446970,-850.65,0.00019178,2]
[365469473,1749689446979,-2447.37,0.00019178,2]
[365469474,1749689446989,-533.84,0.00019178,2]
[365469475,1749689446998,-490.0,0.00019178,2]
[365469476,1749689447008,-2264.85,0.00019178,2]
[365469477,1749689447017,-490.0,0.00019178,2]
[365469478,1749689447026,-582.06,0.00019178,2]
[365469479,1749689447035,-490.0,0.00019178,2]
[365469480,1749689447045,-957.3,0.00019178,2]
[365469481,1749689447054,-490.0,0.00019178,2]
[365469482,1749689447064,-490.0,0.00019178,2]
[365469483,1749689447073,-559.26,0.00019178,2]
[365469484,1749689447082,-3146.63,0.00019178,2]
[365469485,1749689447092,-490.0,0.00019178,2]
[365469486,1749689447101,-3146.63,0.00019178,2]
[365469487,1749689447110,-3146.63,0.00019178,2]
[365469488,1749689447121,-490.0,0.00019178,2]
[365469489,1749689447130,-1788.53,0.00019178,2]
[365469490,1749689447140,-490.0,0.00019178,2]
[365469491,1749689447151,-772.34,0.00019178,2]
[365469492,1749689447160,-490.0,0.00019178,2]
[365469493,1749689447169,-17232.17,0.00019178,2]
[365469494,1749689447179,-480.0,0.00019178,2]
[365469495,1749689447190,-582.95,0.00019178,2]
[365469496,1749689447211,-845.84,0.00019178,2]
[365469497,1749689447221,-490.0,0.00019178,2]
[365469498,1749689447232,-2292.03,0.00019178,2]
[365469499,1749689447242,-858.85,0.00019178,2]
[365469500,1749689447254,-13289.2,0.00019178,2]
[365469501,1749689447270,-490.0,0.00019178,2]
[365469502,1749689447280,-1984.58,0.00019178,2]
[365469503,1749689447290,-940.06,0.00019178,2]
[365469504,1749689447299,-203.2959,0.00019178,2]
[365469505,1749689447309,-1752.25,0.00019178,2]
[365469506,1749689447318,-161.04036,0.00019178,2]
[365469507,1749689447327,-203.2959,0.00019178,2]
[365469508,1749689447337,-161.04036,0.00019178,2]
[365469509,1749689447346,-490.0,0.00019178,2]
[365469510,1749689447355,-500.0,0.00019178,2]
[365469511,1749689447364,-647.02,0.00019178,2]
[365469512,1749689447373,-2405.8,0.00019178,2]
[365469513,1749689447383,-161.04036,0.00019178,2]
[365469514,1749689447392,-490.0,0.00019178,2]
[365469515,1749689447402,-161.04036,0.00019178,2]
[365469516,1749689447412,-203.2959,0.00019178,2]
[365469517,1749689447421,-490.0,0.00019178,2]
[365469518,1749689447431,-490.0,0.00019178,2]
[365469519,1749689447441,-203.2959,0.00019178,2]
[365469520,1749689447450,-551.41,0.00019178,2]
[365469521,1749689447460,-527.99,0.00019178,2]
[365469522,1749689447470,-2770.18,0.00019178,2]
[365469523,1749689447479,-688.81,0.00019178,2]
[365469524,1749689447489,-493.468363,0.00019178,2]
[365469525,1749689447499,-490.0,0.00019178,2]
[365469526,1749689447508,-493.468363,0.00019178,2]
[365469527,1749689447518,-2820.43,0.00019178,2]
[365469528,1749689447527,-5355.82,0.00019178,2]
[365469529,1749689447543,-2152.76,0.00019178,2]
[365469530,1749689447552,-490.0,0.00019178,2]
[365469531,1749689447561,-490.0,0.00019178,2]
[365469532,1749689447570,-490.0,0.00019178,2]
[365469533,1749689447580,-1280.01,0.00019178,2]
[365469534,1749689447590,-493.468363,0.00019178,2]
[365469535,1749689447599,-493.468363,0.00019178,2]
[365469536,1749689447611,-1758.41,0.00019178,2]
[365469537,1749689447622,-166.1,0.00019178,2]
[365469538,1749689447632,-480.0,0.00019178,2]
[365469539,1749689447642,-166.1,0.00019178,2]
[365469540,1749689447652,-490.0,0.00019178,2]
[365469541,1749689447663,-490.0,0.00019178,2]
[365469542,1749689447672,-4191.24,0.00019178,2]
[365469543,1749689447681,-3198.53,0.00019178,2]
[365469544,1749689447691,-960.03,0.00019178,2]
[365469545,1749689447701,-156.421558,0.00019178,2]
[365469546,1749689447711,-490.0,0.00019178,2]
[365469547,1749689447721,-156.780106,0.00019178,2]
[365469548,1749689447730,-1217.22,0.00019178,2]
[365469549,1749689447740,-480.0,0.00019178,2]
[365469550,1749689447749,-166.1,0.00019178,2]
[365469551,1749689447759,-470.0,0.00019178,2]
[365469552,1749689447768,-166.1,0.00019178,2]
[365469553,1749689447777,-480.0,0.00019178,2]
[365469554,1749689447787,-481.7728298,0.00019178,2]
[365469555,1749689447797,-490.0,0.00019178,2]
[365469556,1749689447806,-757.53,0.00019178,2]
[365469557,1749689447816,-694.38,0.00019178,2]
[365469558,1749689447826,-490.0,0.00019178,2]
[365469559,1749689447836,-303.801523,0.00019178,2]
[365469560,1749689447846,-303.801523,0.00019178,2]
[365469561,1749689447855,-1007.45,0.00019178,2]
[365469562,1749689447864,-882.39,0.00019178,2]
[365469563,1749689447874,-490.0,0.00019178,2]
[365469564,1749689447884,-1191.6,0.00019178,2]
[365469565,1749689447894,-490.0,0.00019178,2]
[365469566,1749689447904,-490.0,0.00019178,2]
[365469567,1749689447913,-303.801523,0.00019178,2]
[365469568,1749689447923,-303.801523,0.00019178,2]
[365469569,1749689447933,-1012.35,0.00019178,2]
[365469570,1749689447943,-5768.83,0.00019178,2]
[365469571,1749689447952,-490.0,0.00019178,2]
[365469572,1749689447961,-629.56,0.00019178,2]
[365469573,1749689447971,-490.0,0.00019178,2]
[365469574,1749689447981,-610.7,0.00019178,2]
[365469575,1749689447990,-3714.35,0.00019178,2]
[365469576,1749689448000,-1080.83,0.00019178,2]
[365469577,1749689448010,-5075.83,0.00019178,2]
[365469578,1749689448020,-490.0,0.00019178,2]
[365469579,1749689448029,-151.0,0.00019178,2]
[365469580,1749689448039,-178.66,0.00019178,2]
[365469581,1749689448049,-151.0,0.00019178,2]
[365469582,1749689448059,-151.0,0.00019178,2]
[365469583,1749689448069,-468.32292617,0.00019178,2]
[365469584,1749689448078,-155.89872915,0.00019181,2]
[365469585,1749689448087,-155.89872915,0.00019191,2]
[365469586,1749689448097,-9278.8392631,0.00019192,2]
[365469587,1749689448106,-203785.9214999,0.00019192,2]
[365469588,1749689448116,-35802.4048913,0.00019192,2]
[365469589,1749689448125,-155.89872915,0.00019201,2]
[365469590,1749689448135,-206.28072487,0.00019205,2]
[365469591,1749689448144,-200.0,0.00019205,2]
[365469592,1749689448154,-150.0,0.00019205,2]
[365469593,1749689448164,-150.0,0.00019205,2]
[365469594,1749689448173,-234.39372068,0.00019205,2]
[365469595,1749689448183,-500.0,0.00019205,2]
[365469596,1749689448192,-500.0,0.00019205,2]
[365469597,1749689448202,-500.0,0.00019205,2]
[365469598,1749689448211,-500.0,0.00019205,2]
[365469599,1749689448221,-500.0,0.00019205,2]
[365469600,1749689448230,-150.0,0.00019205,2]
[365469601,1749689448240,-200.0,0.00019205,2]
[365469602,1749689448249,-494.0,0.00019205,2]
[365469603,1749689448259,-150.0,0.00019205,2]
[365469604,1749689448269,-150.0,0.00019205,2]
[365469605,1749689448279,-444.0,0.00019205,2]
[365469606,1749689448288,-2251.0,0.00019205,2]
[365469607,1749689448298,-155.89872915,0.00019211,2]
[365469608,1749689448308,-547.22763917,0.00019214,2]
[365469609,1749689448523,-155.89872915,0.00019222,2]
[365469610,1749689448534,-155.89872915,0.00019232,2]
[365469611,1749689448543,-150.0,0.00019233,2]
[365469612,1749689448554,-150.0,0.00019233,2]
[365469613,1749689448566,-500.0,0.00019233,2]
[365469614,1749689448584,-500.0,0.00019233,2]
[365469615,1749689448594,-500.0,0.00019233,2]
[365469616,1749689448604,-500.0,0.00019233,2]
[365469617,1749689448615,-500.0,0.00019233,2]
[365469618,1749689448625,-150.0,0.00019233,2]
[365469619,1749689448634,-494.0,0.00019233,2]
[365469620,1749689448646,-150.0,0.00019233,2]
[365469621,1749689448655,-200.0,0.00019233,2]
[365469622,1749689448666,-444.0,0.00019233,2]
[365469623,1749689448676,-2251.0,0.00019233,2]
[365469624,1749689448686,-161.62472342,0.00019242,2]
[365469625,1749689448698,-202.34789162,0.00019242,2]
[365469626,1749689448709,-155.89872915,0.00019242,2]
[365469627,1749689448718,-1000.0,0.00019252,2]
[365469628,1749689448729,-151.0,0.0001926,2]
[365469629,1749689448739,-415.07379,0.0001926,2]
[365469630,1749689448748,-415.07379,0.0001926,2]
[365469631,1749689448758,-227.232985,0.0001926,2]
[365469632,1749689448767,-227.232985,0.0001926,2]
[365469633,1749689448778,-150.0,0.0001926,2]
[365469634,1749689448789,-578.63680743,0.0001926,2]
[365469635,1749689448798,-500.0,0.0001926,2]
[365469636,1749689448808,-500.0,0.0001926,2]
[365469637,1749689448818,-500.0,0.0001926,2]
[365469638,1749689448828,-547.04418347,0.0001926,2]
[365469639,1749689448838,-150.0,0.0001926,2]
[365469640,1749689448848,-494.0,0.0001926,2]
[365469641,1749689448857,-150.0,0.0001926,2]
[365469642,1749689448867,-444.0,0.0001926,2]
[365469643,1749689448877,-2251.0,0.0001926,2]
[365469644,1749689448887,-833.29909032,0.00019262,2]
[365469645,1749689448897,-160.78004104,0.00019266,2]
[365469646,1749689448907,-500.0,0.00019268,2]
[365469647,1749689448916,-200.0,0.00019268,2]
[365469648,1749689448926,-150.0,0.00019288,2]
[365469649,1749689448936,-500.0,0.00019288,2]
[365469650,1749689448945,-613.09230434,0.00019288,2]
[365469651,1749689448955,-500.0,0.00019288,2]
[365469652,1749689448965,-250.87390687,0.00019288,2]
[365469653,1749689448975,-494.0,0.00019288,2]
[365469654,1749689448985,-150.0,0.00019288,2]
[365469655,1749689448995,-444.0,0.00019288,2]
[365469656,1749689449004,-2251.0,0.00019288,2]
[365469657,1749689449015,-163.18953909,0.00019288,2]
[365469658,1749689449024,-205.0,0.000193,2]
[365469659,1749689449034,-190.02106427,0.00019315,2]
[365469660,1749689449044,-500.0,0.00019315,2]
[365469661,1749689449053,-500.0,0.00019315,2]
[365469662,1749689449063,-494.0,0.00019315,2]
[365469663,1749689449073,-250.0,0.00019315,2]
[365469664,1749689449083,-444.0,0.00019315,2]